bitfinex/quotes_ETHUSD_20260126
["timestamp","ask_amount","ask_price","bid_price","bid_amount"]
[1769441753457,0.0008,2916.2,2914.8,0.45505018]
[1769441753963,0.0008,2916.2,2915.0,0.02380871]
[1769441754161,0.0008,2916.2,2915.3,0.02380871]
[1769441754462,13.69904558,2917.3,2915.9,0.02380871]
[1769441754760,1.36990456,2917.3,2915.7,0.02380871]
[1769441754926,13.69904558,2917.2,2915.0,0.02380871]
[1769441755126,14.5560611,2917.1,2915.2,0.25737901]
[1769441755935,14.5560611,2917.1,2915.4,0.02380871]
[1769441756138,14.5560611,2917.1,2915.0,0.85762283]
[1769441756349,15.49745573,2917.0,2915.1,1.43329521]
[1769441756661,15.49745573,2917.0,2915.0,0.88143154]
[1769441757031,15.49745573,2917.0,2915.2,0.02380871]
[1769441757229,1.79841015,2917.0,2915.4,0.02380871]
[1769441757444,0.85689802,2917.5,2915.4,0.02380871]
[1769441757644,14.5559436,2917.5,2915.4,0.02380871]
[1769441758046,0.719,2917.6,2915.8,0.02380871]
[1769441758367,13.69904558,2918.0,2916.4,0.02380871]
[1769441758566,14.55579923,2918.0,2916.4,0.02380871]
[1769441758865,15.49731905,2917.9,2916.3,0.02380871]
[1769441759053,1.79827347,2917.9,2916.5,0.02380871]
[1769441759256,14.5557087,2918.3,2916.3,0.88105715]
[1769441759461,14.5557087,2918.3,2915.8,0.02380871]
[1769441759643,14.5557087,2918.3,2915.4,0.02380871]
[1769441759644,13.69904558,2917.7,2915.4,0.02380871]
[1769441759841,13.69904558,2917.7,2915.6,0.85743798]
[1769441760056,13.69904558,2917.7,2915.6,0.85744519]
[1769441760331,13.69904558,2917.5,2915.8,0.02380871]
[1769441760561,13.69904558,2917.5,2915.5,0.02380871]
[1769441761070,13.69904558,2917.5,2915.4,0.85749666]
[1769441761241,0.8569274,2917.4,2915.7,0.02380871]
[1769441761438,1.45460456,2917.6,2916.1,0.02380871]
[1769441761641,14.55581656,2918.0,2915.9,0.02380871]
[1769441761842,14.55581656,2918.0,2915.7,0.02380871]
[1769441761843,14.55581656,2918.0,2916.2,0.02380871]
[1769441762079,13.69904558,2918.5,2916.6,0.02380871]
[1769441762367,13.69904558,2918.5,2916.8,0.02380871]
[1769441762745,13.69904558,2919.1,2917.6,0.02380871]
[1769441762936,0.002,2919.4,2918.0,0.02380871]
[1769441763136,0.002,2919.4,2917.9,0.02380871]
[1769441763374,0.002,2919.4,2918.5,0.02380871]
[1769441763548,0.002,2919.4,2917.9,0.02380871]
[1769441763866,0.002,2919.4,2918.0,0.02380871]
[1769441764073,0.002,2919.4,2918.2,0.02380871]
[1769441764275,0.002,2919.4,2918.3,0.02380871]
[1769441764565,0.002,2919.4,2918.0,0.25737901]
[1769441764768,0.002,2919.4,2918.4,0.02380871]
[1769441765136,0.002,2919.4,2918.2,0.02380871]
[1769441765338,0.002,2919.4,2918.4,0.02380871]
[1769441765971,0.002,2919.4,2918.2,0.88049791]
[1769441766153,0.002,2919.4,2918.2,0.02380871]
[1769441766358,0.002,2919.4,2918.4,0.02380871]
[1769441766548,0.002,2919.4,2918.2,1.251316]
[1769441766865,0.002,2919.4,2918.3,0.02380871]
[1769441767053,0.002,2919.4,2918.2,14.87081706]
[1769441767265,0.002,2919.4,2918.2,14.5]
[1769441767441,2.130419,2918.2,2915.5,13.47532924]
[1769441767634,2.130419,2918.2,2915.6,1.34753292]
[1769441767635,13.69904558,2918.0,2915.6,1.34753292]
[1769441767938,0.86980871,2918.2,2914.8,0.43124147]
[1769441767939,0.02380871,2917.2,2914.8,0.43124147]
[1769441768150,20.49785518,2917.7,2914.5,13.47532924]
[1769441768368,0.02380871,2916.8,2914.4,13.47532924]
[1769441768562,0.02380871,2916.8,2914.8,0.85768942]
[1769441768756,0.02380871,2916.8,2914.4,13.47532924]
[1769441768971,0.02380871,2916.8,2914.5,3.4311187]
[1769441769137,0.128,2917.1,2914.6,1.69064479]
[1769441769334,0.8570449,2917.0,2914.7,3.4308628]
[1769441769539,0.8570449,2917.0,2914.7,0.8577212]
[1769441770145,0.8570449,2917.0,2914.7,14.35685915]
[1769441770669,0.8570449,2917.0,2914.9,0.02380871]
[1769441770840,0.42851298,2916.9,2914.9,14.93720474]
[1769441771260,0.42851298,2916.9,2914.9,14.91339603]
[1769441771574,1.28559213,2916.9,2915.0,0.85763293]
[1769441771768,0.85707915,2916.9,2915.0,0.85763293]
[1769441772070,14.5560611,2917.2,2915.0,0.85763293]
[1769441772375,3.42811137,2917.1,2915.0,0.85763293]
[1769441773475,13.69904558,2917.0,2914.9,2.29571354]
[1769441773645,13.69904558,2917.0,2914.7,0.85770109]
[1769441773969,13.69904558,2917.0,2914.7,3.43086555]
[1769441774173,13.69904558,2917.0,2914.8,0.85767527]
[1769441774477,13.69904558,2917.0,2914.9,0.85765119]
[1769441774772,13.69904558,2917.0,2914.9,0.85765765]
[1769441774940,1.7127157,2916.9,2914.9,0.85765765]
[1769441775684,0.85710367,2916.8,2914.6,0.85775063]
[1769441776178,0.85710367,2916.8,2914.9,0.001]
[1769441776370,0.85710367,2916.8,2914.9,13.47632924]
[1769441776870,1.7127157,2916.9,2915.2,13.49913795]
[1769441777062,0.85703104,2917.1,2915.2,13.49913795]
[1769441777063,0.85701552,2917.1,2915.3,1.3499138]
[1769441777452,0.85701552,2917.1,2914.9,13.47632924]
[1769441777652,0.85700676,2917.2,2915.3,0.02380871]
[1769441777906,0.85700676,2917.2,2915.1,13.49913795]
[1769441778072,0.85700676,2917.2,2915.3,13.49913795]
[1769441778588,1.57493035,2917.4,2915.7,13.34774467]
[1769441778788,0.718,2917.4,2915.8,14.65871043]
[1769441779284,0.85693047,2917.4,2915.8,14.65871043]
[1769441779691,3.57848553,2918.3,2915.8,14.65871043]
[1769441779692,0.002,2919.2,2917.1,13.32393596]
[1769441779850,0.002,2919.2,2917.5,0.67874031]
[1769441779851,0.85642835,2919.1,2917.5,0.67874031]
[1769441780054,13.16345296,2919.0,2916.6,0.02380871]
[1769441780295,0.128,2918.9,2916.6,0.02380871]
[1769441780490,13.16345296,2919.0,2917.0,0.02380871]
[1769441780655,1.40198813,2918.9,2916.8,13.32393596]
[1769441780850,14.01988131,2919.1,2916.4,0.02380871]
[1769441781063,13.16345296,2918.9,2916.6,0.02380871]
[1769441781352,0.128,2919.0,2916.8,0.02380871]
[1769441781557,0.128,2919.0,2916.6,13.34774467]
[1769441781977,0.85648703,2918.9,2916.7,0.85713306]
[1769441782176,0.85648703,2918.9,2916.8,1.763341]
[1769441782177,0.44104352,2918.8,2916.8,1.763341]
[1769441782374,0.44104352,2918.8,2917.0,0.02380871]
[1769441782557,0.85840134,2919.2,2917.1,0.02380871]
[1769441783077,14.0218543,2919.2,2917.0,13.32393596]
[1769441783251,0.85840134,2919.2,2917.3,0.02380871]
[1769441783454,0.85840853,2919.2,2917.7,0.02380871]
[1769441783649,0.85840266,2919.2,2917.5,13.34774467]
[1769441783851,0.002,2919.2,2917.8,0.85680992]
[1769441784382,0.002,2919.2,2917.6,1.33477447]
[1769441784771,0.002,2919.2,2917.6,0.85686135]
[1769441784983,0.002,2919.2,2917.7,0.85683556]
[1769441785189,0.002,2919.2,2917.6,0.8568496]
[1769441785389,0.002,2919.2,2917.6,0.856866]
[1769441785589,0.002,2919.2,2917.6,0.85684914]
[1769441785785,0.002,2919.2,2917.7,1.28766248]
[1769441785967,0.002,2919.2,2917.7,0.43082428]
[1769441786177,0.002,2919.2,2917.3,13.34774467]
[1769441786178,0.002,2919.2,2917.4,0.02380871]
[1769441786376,0.002,2919.2,2917.3,13.32393596]
[1769441786608,0.002,2919.2,2917.3,14.18088428]
[1769441786825,0.002,2919.2,2917.4,0.85692452]
[1769441786997,0.002,2919.2,2917.3,14.18088427]
[1769441787180,0.002,2919.2,2917.4,1.41808843]
[1769441787181,13.16545296,2919.2,2917.4,1.41808843]
[1769441787376,13.16545296,2919.2,2917.3,0.85694087]
[1769441787579,13.16545296,2919.2,2916.8,18.51567196]
[1769441787806,0.128,2918.6,2916.3,0.85723568]
[1769441788105,0.85666312,2918.3,2916.3,0.85722341]
[1769441788292,0.85666312,2918.3,2916.2,14.18119604]
[1769441788496,0.85666312,2918.3,2916.3,0.02380871]
[1769441788710,14.02011608,2918.3,2916.0,3.42934432]
[1769441788897,14.92092982,2918.2,2916.2,0.85727789]
[1769441789107,1.75747686,2918.2,2916.8,0.001]
[1769441789321,0.85666312,2918.3,2916.8,0.001]
[1769441790174,0.98454572,2918.7,2916.8,0.85810367]
[1769441790374,0.98454572,2918.7,2916.9,0.02380871]
[1769441790606,0.98454572,2918.7,2916.8,0.001]
[1769441791591,14.14799868,2918.7,2916.8,0.001]
[1769441791794,13.16345296,2918.5,2916.8,0.001]
[1769441792197,0.85663377,2918.4,2916.8,0.001]
[1769441794611,0.128,2918.0,2916.8,0.001]
[1769441795011,0.846,2918.0,2916.8,0.001]
[1769441795199,9.25053225,2918.0,2916.1,0.3453153]
[1769441795399,9.25053225,2918.0,2915.5,13.34774467]
[1769441795400,0.82019644,2917.9,2915.9,0.85736766]
[1769441795605,0.82019644,2917.9,2915.7,0.85740723]
[1769441795813,13.9836494,2917.9,2915.7,0.85740723]
[1769441796014,13.29145296,2917.8,2915.5,13.32393596]
[1769441796183,13.29145296,2917.6,2915.2,0.85755892]
[1769441796513,0.85695677,2917.3,2915.3,1.28633154]
[1769441796699,0.85695677,2917.3,2915.3,0.85754392]
[1769441797010,0.85695677,2917.3,2915.5,13.34774467]
[1769441797177,0.85695677,2917.3,2915.5,13.32393596]
[1769441797178,1.57495677,2917.3,2915.5,13.32393596]
[1769441797380,14.73840973,2917.3,2915.2,0.85755258]
[1769441797616,14.73840973,2917.3,2915.0,13.32393596]
[1769441797812,0.82019644,2917.2,2915.2,0.85755441]
[1769441798001,0.82019644,2917.2,2915.3,0.85752465]
[1769441798207,0.82019644,2917.2,2915.4,13.34774467]
[1769441798410,1.53819644,2917.2,2915.4,13.34774467]
[1769441798913,0.82019644,2917.2,2915.6,0.02380871]
[1769441799111,0.85683929,2917.7,2915.8,13.34774467]
[1769441799283,0.98478056,2917.9,2916.0,13.34774467]
[1769441799483,0.98478056,2917.9,2916.0,13.32393596]
[1769441799908,14.14823352,2917.9,2915.8,0.02380871]
[1769441800288,14.14823352,2917.9,2915.5,13.32393596]
[1769441800289,13.29145296,2917.7,2915.5,13.32393596]
[1769441800506,13.29145296,2917.5,2915.5,14.65632956]
[1769441800706,13.29145296,2917.5,2915.5,1.3323936]
[1769441800907,0.128,2917.3,2915.2,3.43019806]
[1769441801095,0.128,2917.3,2915.2,16.77794273]
[1769441801290,0.128,2917.3,2915.3,13.32393596]
[1769441801904,0.846,2917.3,2915.3,13.32393596]
[1769441802607,0.846,2917.3,2915.5,0.001]
[1769441802799,0.846,2917.3,2915.5,1.3334936]
[1769441802998,0.85698615,2917.2,2915.5,1.3334936]
[1769441803199,0.002,2917.7,2916.3,0.02380871]
[1769441803407,0.85885397,2917.7,2916.3,13.34774467]
[1769441803592,0.43080994,2917.7,2916.4,1.33477447]
[1769441803795,0.002,2917.7,2916.4,14.65871043]
[1769441804507,0.85885687,2917.7,2916.4,14.65871043]
[1769441804705,0.85885687,2917.7,2915.9,13.32393596]
[1769441804706,0.85884612,2917.7,2915.9,13.32393596]
[1769441804905,1.57684612,2917.7,2915.9,13.32393596]
[1769441805416,1.57684612,2917.7,2915.9,14.1813]
[1769441805814,1.57684612,2917.7,2915.8,0.85739416]
[1769441806000,14.74029908,2917.7,2915.6,0.85744184]
[1769441806231,1.8167644,2917.6,2915.7,0.21909354]
[1769441806830,0.128,2917.5,2915.7,0.21909354]
[1769441807021,0.8569274,2917.4,2915.7,0.21909354]
[1769441807226,14.02038036,2917.4,2915.7,0.21909354]
[1769441807421,14.02038036,2917.4,2915.5,1.3334936]
[1769441808908,0.8569274,2917.4,2915.7,0.85740774]
[1769441809109,0.85689802,2917.6,2915.7,13.12594501]
[1769441811518,0.85689802,2917.6,2915.7,13.98336955]
[1769441811738,0.718,2917.5,2915.7,13.12594501]
[1769441812057,16.13597935,2917.4,2915.5,0.001]
[1769441812353,12.86621435,2917.4,2915.5,0.001]
[1769441813444,0.85694295,2917.4,2915.6,13.12594501]
[1769441813644,0.85691634,2917.5,2915.6,13.12594501]
[1769441813843,0.85691634,2917.5,2915.8,13.12594501]
[1769441815348,0.85691634,2917.5,2915.9,0.85736822]
[1769441815663,0.002,2917.4,2915.9,0.85736822]
[1769441816030,0.002,2917.4,2915.9,13.98331323]
[1769441816334,0.002,2917.4,2915.9,13.12594501]
[1769441816533,0.002,2917.4,2916.0,1.39833226]
[1769441818338,0.002,2917.4,2915.9,13.12594501]
[1769441818840,0.002,2917.4,2915.9,13.98329427]
[1769441819057,0.002,2917.4,2915.9,13.12594501]
[1769441819439,0.002,2917.4,2915.8,13.12594501]
[1769441821182,0.002,2917.4,2916.0,13.12594501]
[1769441821350,0.002,2917.4,2916.2,13.12594501]
[1769441821548,0.002,2917.6,2916.4,13.12594501]
[1769441823491,3.42603815,2918.9,2916.5,13.12594501]
[1769441823811,0.85847942,2919.0,2917.2,13.12594501]
[1769441824014,0.85845885,2919.0,2917.3,1.3125945]
[1769441824304,0.002,2919.0,2917.3,14.46234822]
[1769441824466,0.85845986,2919.0,2917.3,14.46234822]
[1769441825194,0.002,2919.0,2917.5,13.14975372]
[1769441825503,0.002,2919.0,2917.3,1.33640321]
[1769441825504,0.85845789,2919.0,2917.3,1.3125945]
[1769441825664,0.002,2919.0,2917.1,0.85701552]
[1769441825860,12.73821435,2918.8,2916.8,0.85707985]
[1769441826078,12.73821435,2918.8,2917.0,0.85704435]
[1769441826363,12.73821435,2918.8,2916.9,13.98299859]
[1769441826599,1.27382143,2918.7,2917.0,1.7411377]
[1769441826767,14.01203578,2918.7,2916.5,0.85717475]
[1769441826972,14.01203578,2918.7,2916.4,13.98315146]
[1769441827168,14.01203578,2918.7,2916.4,13.12594501]
[1769441827169,0.128,2918.4,2916.4,13.12594501]
[1769441827508,7.21612942,2918.2,2916.4,13.12594501]
[1769441827667,0.85675119,2918.0,2916.0,0.85733551]
[1769441827867,0.85675119,2918.0,2916.0,14.00708923]
[1769441828218,1.5783517,2918.1,2916.5,13.12594501]
[1769441828368,0.72161294,2918.1,2916.5,13.12594501]
[1769441828568,0.85668101,2918.3,2916.5,13.12594501]
[1769441828905,0.85665136,2918.4,2916.8,13.14975372]
[1769441829260,1.57462045,2918.5,2916.8,13.12594501]
[1769441829492,0.85661709,2918.5,2917.0,13.12594501]
[1769441829804,0.002,2918.6,2917.0,13.12594501]
[1769441830011,0.002,2918.6,2917.1,1.40068064]
[1769441830565,0.002,2918.6,2916.9,0.85706673]
[1769441830784,0.002,2918.6,2917.0,0.85704184]
[1769441830990,0.002,2918.6,2917.0,14.00679556]
[1769441831185,0.002,2918.6,2917.0,13.98298117]
[1769441831385,0.002,2918.6,2917.0,13.12594501]
[1769441831586,0.002,2918.6,2917.1,1.3125945]
[1769441832497,0.002,2918.6,2917.1,2.16960922]
[1769441833072,0.002,2918.6,2917.1,1.3125945]
[1769441833804,0.002,2918.6,2916.8,0.85709956]
[1769441834102,0.002,2918.6,2916.9,13.98300224]
[1769441835150,0.002,2918.6,2917.1,0.85700735]
[1769441835435,0.002,2918.6,2917.1,13.98295236]
[1769441836036,0.002,2918.6,2917.1,13.12594501]
[1769441836237,0.002,2918.6,2917.2,1.39829698]
[1769441836741,0.002,2918.6,2917.2,14.5480507]
[1769441837039,0.002,2918.6,2917.4,13.14975372]
[1769441837637,0.002,2918.6,2917.4,13.12594501]
[1769441837837,0.002,2918.6,2917.5,13.98284303]
[1769441838044,0.002,2918.6,2917.6,1.74105185]
[1769441839612,0.002,2918.6,2917.1,0.85700761]
[1769441840439,0.002,2918.6,2917.3,13.34280516]
[1769441841031,0.002,2918.6,2917.2,0.001]
[1769441841845,19.38511586,2918.2,2916.4,13.34280516]
[1769441842023,0.128,2918.0,2915.9,13.34380516]
[1769441842351,14.01823873,2917.9,2916.0,1.47611709]
[1769441842554,14.01823873,2917.9,2915.9,0.001]
[1769441842555,19.38511586,2917.6,2915.9,0.001]
[1769441842752,12.73221703,2917.6,2915.9,0.001]
[1769441843748,0.85689802,2917.5,2915.9,0.001]
[1769441844117,13.58911505,2917.5,2915.9,0.001]
[1769441844543,14.30711505,2917.5,2915.9,0.001]
[1769441844748,1.29158938,2917.4,2915.9,0.001]
[1769441845547,1.29158938,2917.4,2915.5,0.001]
[1769441845548,12.73221703,2916.9,2915.5,0.001]
[1769441845748,0.85725062,2916.3,2914.9,0.001]
[1769441845947,1.57525062,2916.3,2914.9,0.001]
[1769441846161,1.1657152,2916.2,2914.9,0.001]
[1769441846457,13.89793223,2916.2,2914.9,0.001]
[1769441846871,13.89793223,2916.2,2913.9,13.34280516]
[1769441847053,6.65289883,2915.8,2913.9,13.34280516]
[1769441847259,19.38511586,2915.8,2913.9,13.34280516]
[1769441847430,1.41189588,2915.7,2914.0,1.33428052]
[1769441847776,0.85745644,2915.6,2914.0,1.33428052]
[1769441848444,0.718,2915.5,2914.0,1.33428052]
[1769441848886,0.718,2915.5,2913.9,0.85793548]
[1769441849034,0.85745644,2915.6,2913.9,0.85793842]
[1769441849364,0.718,2915.5,2913.7,13.36661387]
[1769441849563,0.718,2915.5,2913.7,13.34280516]
[1769441849861,0.85751526,2915.4,2913.7,14.2008134]
[1769441850169,1.41189588,2915.7,2913.7,14.2008134]
[1769441850170,0.85747292,2915.6,2914.0,0.02380871]
[1769441850468,0.718,2915.5,2913.8,14.78669521]
[1769441850652,1.41189588,2915.7,2914.3,13.36661387]
[1769441850854,1.57535871,2916.0,2914.3,13.36661387]
[1769441851741,14.30757574,2916.0,2913.8,14.7628865]
[1769441852143,12.86021703,2915.6,2913.8,1.42008134]
[1769441852374,12.86021703,2915.6,2913.6,0.85804228]
[1769441853061,12.86021703,2915.6,2913.8,14.2007859]
[1769441853062,0.128,2915.6,2913.8,14.2007859]
[1769441853262,0.128,2915.6,2914.0,13.34280516]
[1769441853466,0.128,2915.6,2914.1,0.001]
[1769441854171,0.719,2915.8,2914.2,13.34280516]
[1769441854371,0.128,2915.9,2914.3,1.33438052]
[1769441854372,0.719,2915.7,2914.3,1.33438052]
[1769441855669,0.719,2915.8,2914.3,1.33438052]
[1769441855870,0.719,2915.8,2914.3,14.67718568]
[1769441856271,0.85735871,2916.0,2914.3,15.53499761]
[1769441856474,0.719,2915.9,2914.3,15.53499761]
[1769441856674,13.45121703,2915.9,2914.4,1.55349976]
[1769441856867,13.45121703,2915.9,2914.1,0.001]
[1769441857478,0.128,2915.8,2914.1,0.001]
[1769441857689,12.86021703,2915.8,2914.1,0.001]
[1769441858378,12.86021703,2915.6,2914.1,0.001]
[1769441858565,19.51311586,2915.6,2914.1,0.001]
[1769441858757,2.03705429,2915.5,2914.1,0.001]
[1769441860483,0.85751526,2915.4,2914.1,0.001]
[1769441861885,13.58973229,2915.4,2914.1,0.001]
[1769441863400,0.85751526,2915.4,2914.1,0.001]
[1769441865794,0.85751526,2915.4,2914.3,0.002]
[1769441865977,0.54055679,2915.3,2914.1,0.001]
[1769441866292,1.57645829,2915.6,2914.1,13.34380516]
[1769441866861,1.57645829,2915.6,2914.1,14.20169326]
[1769441867086,1.57645829,2915.6,2914.1,13.34380516]
[1769441867291,1.57645829,2915.6,2914.1,14.20168641]
[1769441867498,0.001,2915.7,2914.3,13.36661387]
[1769441867864,0.001,2915.7,2914.4,0.2335703]
[1769441868079,0.001,2915.7,2914.5,13.34280516]
[1769441868365,0.001,2915.7,2914.6,0.85775063]
[1769441868577,0.001,2915.7,2914.7,13.74617071]
[1769441868774,0.001,2915.7,2914.8,1.37461707]
[1769441869094,0.001,2915.7,2914.8,15.12078778]
[1769441869271,0.001,2915.7,2914.8,1.37461707]
[1769441869473,0.001,2915.7,2914.4,14.60397509]
[1769441869781,0.001,2915.7,2914.5,13.74617071]
[1769441871098,0.001,2915.7,2914.1,13.74717071]
[1769441872404,0.001,2915.7,2914.2,14.60403266]
[1769441873202,0.001,2915.7,2914.4,13.74617071]
[1769441873379,0.001,2915.7,2914.6,13.74617071]
[1769441874227,0.001,2915.7,2914.2,14.60403266]
[1769441874380,0.001,2915.7,2914.2,13.74617071]
[1769441876305,0.001,2915.7,2914.2,14.6040352]
[1769441876803,0.001,2915.7,2914.2,14.60403027]
[1769441877021,0.50169881,2915.7,2914.4,13.74617071]
[1769441877488,0.50169881,2915.7,2914.3,1.4628839]
[1769441877489,8.86792562,2915.7,2914.3,1.4628839]
[1769441877675,0.50169881,2915.7,2914.2,14.60403036]
[1769441877871,0.50169881,2915.7,2914.2,13.74617071]
[1769441878075,0.50169881,2915.7,2914.2,14.60403555]
[1769441878300,0.50169881,2915.7,2914.2,13.74617071]
[1769441878472,0.50169881,2915.7,2914.3,1.46250469]
[1769441878676,13.70884413,2915.7,2914.3,0.002]
[1769441879003,13.20814532,2915.5,2914.3,0.002]
[1769441879571,0.001,2915.5,2914.3,0.002]
[1769441880309,0.001,2915.5,2914.3,13.74817071]
[1769441880477,0.001,2915.5,2914.5,13.74617071]
[1769441881204,0.001,2915.5,2914.5,14.60394538]
[1769441881572,0.001,2915.5,2914.5,13.76997942]
[1769441881772,0.001,2915.5,2914.5,14.6277486]
[1769441882000,0.001,2915.5,2914.5,14.60393989]
[1769441882176,0.001,2915.5,2914.7,13.74617071]
[1769441883007,0.001,2915.7,2914.8,13.74617071]
[1769441883221,7.5099985,2916.9,2915.2,13.74617071]
[1769441883517,13.20714532,2916.8,2915.2,13.74475619]
[1769441883820,15.2788597,2916.7,2915.3,1.37447562]
[1769441883988,15.2788597,2916.7,2915.1,13.74617071]
[1769441884320,2.07171438,2916.7,2915.1,13.74617071]
[1769441884521,7.5099985,2916.9,2915.1,13.74617071]
[1769441884522,13.20714532,2916.8,2915.1,13.74617071]
[1769441884886,14.06427838,2916.7,2914.7,13.74617071]
[1769441885086,19.86004415,2916.2,2914.7,14.60387633]
[1769441885289,0.719,2916.3,2914.9,13.74617071]
[1769441885490,0.847,2916.5,2914.9,13.74617071]
[1769441885791,1.40541453,2916.4,2915.1,13.74617071]
[1769441886694,0.128,2916.5,2915.1,13.74617071]
[1769441887097,0.85722123,2916.4,2915.1,13.74617071]
[1769441887916,6.65289883,2916.9,2915.1,14.6037681]
[1769441888225,6.65289883,2916.8,2915.3,13.74617071]
[1769441888445,1.98600442,2916.7,2915.4,1.37461707]
[1769441888993,6.65289883,2916.8,2915.6,13.74617071]
[1769441889198,0.8570449,2917.0,2915.6,13.74617071]
[1769441889732,14.06419022,2917.0,2915.4,1.37461707]
[1769441890123,14.06419022,2917.0,2915.4,15.97830279]
[1769441890320,14.06419022,2917.0,2915.4,15.12078778]
[1769441890622,1.7492306,2916.9,2915.5,15.3440027]
[1769441891219,0.85710367,2916.8,2915.5,15.3440027]
[1769441892640,0.85810367,2916.8,2915.5,15.3440027]
[1769441893133,0.001,2916.8,2915.5,15.3440027]
[1769441894133,13.20814532,2916.8,2915.5,15.3440027]
[1769441894324,0.82838048,2916.7,2915.5,13.74617071]
[1769441894729,0.001,2916.8,2915.5,13.74617071]
[1769441896416,13.20814532,2916.8,2915.1,13.74617071]
[1769441896627,13.20714532,2916.3,2914.7,13.74617071]
[1769441896828,13.20714532,2916.1,2914.4,13.74617071]
[1769441897028,13.20714532,2916.1,2914.5,1.46059875]
[1769441897229,14.06448414,2916.0,2914.5,1.46059875]
[1769441897704,7.21804051,2915.8,2914.5,1.46059875]
[1769441897909,13.33514532,2915.7,2914.3,0.002]
[1769441898123,13.33514532,2915.7,2914.1,0.001]
[1769441898124,13.20714532,2915.5,2914.1,0.001]
[1769441899138,0.719,2915.6,2914.1,0.001]
[1769441899336,0.85748585,2915.5,2914.1,0.001]
[1769441899635,0.50064292,2915.4,2914.1,0.001]
[1769441899846,13.77529816,2915.4,2914.1,0.001]
[1769441900210,13.77529816,2915.4,2914.0,0.002]
[1769441901634,14.13219991,2915.3,2914.0,0.002]
[1769441902335,0.85754467,2915.3,2914.0,0.002]
[1769441902537,1.19783663,2915.2,2914.0,14.64061675]
[1769441902712,0.50064292,2915.4,2914.0,14.64061675]
[1769441902919,0.85747451,2915.6,2914.0,14.64061675]
[1769441904449,1.57644181,2915.7,2914.2,13.30765159]
[1769441904746,0.85733882,2916.0,2914.4,13.30765159]
[1769441905116,13.27465524,2917.4,2914.8,13.30765159]
[1769441905325,13.27465524,2917.4,2914.7,0.02380871]
[1769441905326,0.85713306,2916.7,2915.0,13.30765159]
[1769441905758,14.1317883,2916.7,2915.0,13.30765159]
[1769441905923,14.15559701,2916.7,2914.9,1.33314603]
[1769441906127,14.15559701,2916.7,2914.6,13.54122189]
[1769441906326,14.15559701,2916.7,2914.6,14.16538393]
[1769441907253,14.1317883,2916.7,2914.8,13.30765159]
[1769441907457,0.719,2916.6,2914.8,13.30765159]
[1769441908445,0.85719183,2916.5,2914.8,13.30765159]
[1769441908756,0.50049592,2916.4,2914.9,1.33076516]
[1769441908980,13.27465524,2916.1,2914.4,13.30765159]
[1769441910159,13.27465524,2916.1,2914.4,14.16546093]
[1769441910377,7.21804051,2916.2,2914.4,14.16546093]
[1769441910378,0.85735812,2916.0,2914.6,13.30765159]
[1769441910550,2.0078133,2916.0,2914.8,13.30765159]
[1769441910746,0.85725062,2916.3,2914.8,13.30765159]
[1769441911873,14.13190586,2916.3,2914.7,1.33314603]
[1769441912083,14.13190586,2916.3,2914.4,14.16546093]
[1769441912979,14.13190586,2916.3,2914.5,0.02380871]
[1769441913277,14.13190586,2916.3,2914.6,13.30765159]
[1769441916074,0.001,2916.1,2914.6,13.30765159]
[1769441921454,13.27565524,2916.1,2914.6,13.30765159]
[1769441921647,1.32756552,2916.0,2914.6,13.30765159]
[1769441921847,0.719,2915.9,2914.6,13.30765159]
[1769441922083,7.21804051,2915.6,2914.2,13.30765159]
[1769441922457,8.07551972,2915.6,2914.2,13.30765159]
[1769441922979,8.07551972,2915.6,2914.2,14.16551873]
[1769441923187,0.74954964,2915.5,2914.4,13.30765159]
[1769441923559,1.32756552,2916.0,2914.4,13.30765159]
[1769441923560,0.85741684,2915.8,2914.4,13.30765159]
[1769441923765,1.57641684,2915.8,2914.4,13.30765159]
[1769441924088,0.719,2915.8,2914.7,13.30765159]
[1769441924390,0.001,2916.1,2914.7,13.30765159]
[1769441925786,0.001,2916.1,2914.7,14.16537196]
[1769441925998,0.001,2916.1,2914.9,13.30765159]
[1769441927887,0.001,2915.9,2914.9,13.30765159]
[1769441928089,0.001,2916.1,2915.2,13.30765159]
[1769441928290,0.001,2916.1,2914.9,13.30765159]
[1769441928583,0.001,2916.1,2914.8,1.41891807]
[1769441928584,14.27761982,2916.0,2914.8,1.41891807]
[1769441928885,15.19106957,2915.9,2914.6,0.002]
[1769441929265,13.420281,2915.5,2914.0,0.002]
[1769441929465,13.420281,2915.3,2914.0,0.002]
[1769441929973,14.139281,2915.3,2914.0,0.002]
[1769441930184,0.80682251,2915.2,2914.0,0.002]
[1769441931585,1.6644096,2915.2,2914.0,0.002]
[1769441931787,0.80682251,2915.2,2914.0,0.002]
[1769441931996,0.85746946,2915.6,2914.2,0.02380871]
[1769441932365,0.85746946,2915.6,2914.4,0.02380871]
[1769441932891,0.85741666,2915.8,2914.4,0.02380871]
[1769441933064,0.85741666,2915.8,2914.5,1.44637397]
[1769441935189,14.27769766,2915.8,2914.5,1.44637397]
[1769441935393,14.27769766,2915.8,2914.0,0.88371531]
[1769441935688,14.27769766,2915.8,2914.2,0.02380871]
[1769441936390,14.27769766,2915.8,2914.4,13.60592129]
[1769441936762,14.27769766,2915.8,2914.4,13.58211258]
[1769441938287,14.27769766,2915.8,2914.5,0.02380871]
[1769441938594,1.49966977,2915.7,2914.6,1.44637302]
[1769441939099,0.85745644,2915.6,2914.6,1.44637302]
[1769441939993,2.35711901,2915.7,2914.6,1.44637302]
[1769441940994,1.49966977,2915.7,2914.6,1.44637302]
[1769441941467,1.57636875,2915.9,2914.6,1.44637302]
[1769441941661,0.85736001,2916.0,2914.6,15.0284856]
[1769441941890,0.001,2915.5,2914.7,0.02380871]
[1769441942093,0.001,2915.5,2914.9,13.60592129]
[1769441942293,0.001,2916.1,2914.9,13.60592129]
[1769441942294,0.001,2916.1,2915.1,0.02380871]
[1769441942468,0.001,2916.1,2915.1,1.38678171]
[1769441943000,0.001,2916.8,2915.7,0.02380871]
[1769441943194,13.421281,2916.8,2915.4,0.85751526]
[1769441943394,0.001,2916.8,2916.0,13.60592129]
[1769441943597,0.001,2916.8,2915.8,0.2335703]
[1769441943804,0.001,2916.8,2915.8,1.61751946]
[1769441943981,0.001,2916.8,2915.9,0.02380871]
[1769441944184,0.001,2916.8,2915.8,1.38394916]
[1769441944583,0.001,2916.8,2916.0,13.58211258]
[1769441945382,13.420281,2917.8,2916.2,13.58211258]